fUSD/lending_fUSD_20240624
["ID","MTS","AMOUNT","RATE_DAILY","PERIOD"]
[330283820,1719227462887,-4132.83,0.0002,4]
[330283821,1719227462896,-1084.55,0.0002,4]
[330283822,1719227462905,-4922.54,0.0002,4]
[330283823,1719227462915,-735.24,0.0002,4]
[330283824,1719227462924,-500.0,0.0002,4]
[330283825,1719227462933,-758.45,0.0002,4]
[330283826,1719227462943,-3180.72,0.0002,4]
[330283827,1719227462953,-500.0,0.0002,4]
[330283828,1719227462962,-500.0,0.0002,4]
[330283829,1719227462972,-500.82157711,0.0002,4]
[330283830,1719227462982,-1036.51,0.0002,4]
[330283831,1719227462994,-500.0,0.0002,4]
[330283832,1719227463003,-548.63,0.0002,4]
[330283833,1719227463014,-500.0,0.0002,4]
[330283834,1719227463023,-500.0,0.0002,4]
[330283835,1719227463034,-500.0,0.0002,4]
[330283836,1719227463044,-652.79,0.0002,4]
[330283837,1719227463054,-904.18,0.0002,4]
[330283838,1719227463064,-2267.53,0.0002,4]
[330283839,1719227463074,-2983.38,0.0002,4]
[330283840,1719227463083,-1265.02,0.0002,4]
[330283841,1719227463098,-731.76,0.0002,4]
[330283842,1719227463278,-1690.39,0.0002,4]
[330283843,1719227463291,-722.24,0.0002,4]
[330283844,1719227463307,-1208.06,0.0002,4]
[330283845,1719227463321,-844.76,0.0002,4]
[330283846,1719227463331,-657.83,0.0002,4]
[330283847,1719227463343,-1159.62,0.0002,4]
[330283848,1719227463353,-500.0,0.0002,4]
[330283849,1719227463362,-1888.33,0.0002,4]
[330283850,1719227463372,-1051.38,0.0002,4]
[330283851,1719227463381,-500.0,0.0002,4]
[330283852,1719227463391,-527.93,0.0002,4]
[330283853,1719227463402,-1353.28,0.0002,4]
[330283854,1719227463415,-762.37,0.0002,4]
[330283855,1719227463425,-820.87,0.0002,4]
[330283856,1719227463434,-2837.89,0.0002,4]
[330283857,1719227463444,-500.0,0.0002,4]
[330283858,1719227463454,-500.0,0.0002,2]
[330283859,1719227463464,-500.0,0.0002,4]
[330283860,1719227463474,-500.0,0.0002,4]
[330283861,1719227463484,-736.85,0.0002,4]
[330283862,1719227463494,-1000.0,0.00020039,2]
[330283863,1719227463504,-209.98252522,0.0002004,2]
[330283864,1719227463514,-1376.21653155,0.00020054,2]
[330283865,1719227463523,-153.5,0.0002007,2]
[330283866,1719227463533,-500.0,0.0002011,2]
[330283867,1719227463543,-3812.27278431,0.00020135,2]
[330283868,1719227463552,-3000.0,0.0002014,2]
[330283869,1719227463562,-808.4756487,0.0002016,2]
[330283870,1719227463571,-13028.19500621,0.00020168,2]
[330283871,1719227463962,-15558.33174166,0.00020168,2]
[330283872,1719227463971,-955.85753929,0.00020195,2]
[330283873,1719227463981,-3870.03518597,0.000202,2]
[330283874,1719227463991,-991.8,0.000202,2]
[330283875,1719227464000,-1370.56006701,0.00020219,2]
[330283876,1719227464010,-160.89013812,0.00020232,2]
[330283877,1719227464020,-158.86009896,0.0002026,2]
[330283878,1719227464029,-1000.0,0.00020265,2]
[330283879,1719227464038,-155.0167928,0.0002027,2]
[330283880,1719227464048,-155.0167928,0.0002027,2]
[330283881,1719227464058,-5148.19,0.00020271,4]
[330283882,1719227464067,-5148.19,0.00020272,4]
[330283883,1719227464077,-5148.19,0.00020272,4]
[330283884,1719227464087,-5148.19,0.00020272,4]
[330283885,1719227464103,-523.33,0.00020273,4]
[330283886,1719227464113,-882.49,0.00020273,4]
[330283887,1719227464122,-553.31,0.00020273,4]
[330283888,1719227464132,-536.2,0.00020273,4]
[330283889,1719227464142,-500.0,0.00020273,4]
[330283890,1719227464152,-620.41,0.00020273,4]
[330283891,1719227464162,-745.38,0.00020273,4]
[330283892,1719227464171,-713.68,0.00020273,4]
[330283893,1719227464182,-947.94,0.00020273,4]
[330283894,1719227464191,-510.99333183,0.00020273,4]
[330283895,1719227464201,-500.0,0.00020273,4]
[330283896,1719227464211,-500.0,0.00020273,4]
[330283897,1719227464220,-500.0,0.00020273,4]
[330283898,1719227464230,-500.0,0.00020273,4]
[330283899,1719227464239,-500.0,0.00020273,4]
[330283900,1719227464249,-500.0,0.00020273,4]
[330283901,1719227464258,-500.0,0.00020273,4]
[330283902,1719227464267,-500.0,0.00020273,4]
[330283903,1719227464276,-530.29,0.00020273,4]
[330283904,1719227464286,-500.0,0.00020273,4]
[330283905,1719227464296,-500.0,0.00020273,4]
[330283906,1719227464305,-500.0,0.00020273,4]
[330283907,1719227464315,-500.0,0.00020273,4]
[330283908,1719227464324,-500.0,0.00020273,4]
[330283909,1719227464335,-500.0,0.00020273,4]
[330283910,1719227464346,-1473.52,0.00020273,4]
[330283911,1719227464355,-500.0,0.00020273,4]
[330283912,1719227464364,-423.07176205,0.00020273,4]
[330283913,1719227464373,-500.0,0.00020273,4]
[330283914,1719227464382,-500.0,0.00020273,4]
[330283915,1719227464392,-500.0,0.00020273,4]
[330283916,1719227464401,-1068.79,0.00020273,4]
[330283917,1719227464410,-209.0750973,0.00020273,4]
[330283918,1719227464420,-750.11,0.00020273,4]
[330283919,1719227464430,-500.0,0.00020273,4]
[330283920,1719227464440,-500.0,0.00020273,4]
[330283921,1719227464449,-500.0,0.00020273,4]
[330283922,1719227464459,-500.0,0.00020273,4]
[330283923,1719227464468,-500.0,0.00020273,4]
[330283924,1719227464478,-510.78,0.00020273,4]
[330283925,1719227464487,-626.73,0.00020273,4]
[330283926,1719227464495,-500.0,0.00020273,4]
[330283927,1719227464505,-500.0,0.00020273,4]
[330283928,1719227464514,-500.0,0.00020273,4]
[330283929,1719227464523,-500.0,0.00020273,4]
[330283930,1719227464533,-500.0,0.00020273,4]
[330283931,1719227464542,-500.0,0.00020273,4]
[330283932,1719227464552,-522.79,0.00020273,4]
[330283933,1719227464561,-1714.53,0.00020273,4]
[330283934,1719227464571,-578.47,0.00020273,4]
[330283935,1719227464581,-500.0,0.00020273,4]
[330283936,1719227464593,-585.27,0.00020273,4]
[330283937,1719227464602,-874.46,0.00020273,4]
[330283938,1719227464612,-500.0,0.00020273,4]
[330283939,1719227464621,-500.0,0.00020273,4]
[330283940,1719227464631,-533.54,0.00020273,4]
[330283941,1719227464641,-1377.28,0.00020273,4]
[330283942,1719227464651,-500.0,0.00020273,4]
[330283943,1719227464660,-250.0,0.00020273,4]
[330283944,1719227464670,-822.94,0.00020273,4]
[330283945,1719227464679,-500.0,0.00020273,4]
[330283946,1719227464688,-965.57,0.00020273,4]
[330283947,1719227464698,-707.57,0.00020273,4]
[330283948,1719227464708,-500.0,0.00020273,4]
[330283949,1719227464718,-514.17836362,0.00020273,4]
[330283950,1719227464727,-500.0,0.00020273,4]
[330283951,1719227464736,-651.35,0.00020273,4]
[330283952,1719227464745,-500.0,0.00020273,4]
[330283953,1719227464754,-528.6,0.00020273,4]
[330283954,1719227464764,-500.0,0.00020273,4]
[330283955,1719227464773,-1322.51,0.00020273,4]
[330283956,1719227464782,-500.0,0.00020273,4]
[330283957,1719227464791,-1132.75,0.00020273,4]
[330283958,1719227464800,-500.0,0.00020273,4]
[330283959,1719227464809,-982.24,0.00020273,4]
[330283960,1719227464818,-826.6,0.00020273,4]
[330283961,1719227464827,-500.08,0.00020273,4]
[330283962,1719227464837,-519.36,0.00020273,4]
[330283963,1719227464848,-516.0,0.00020273,4]
[330283964,1719227464858,-500.0,0.00020273,4]
[330283965,1719227464867,-852.64,0.00020273,4]
[330283966,1719227464876,-926.26,0.00020273,4]
[330283967,1719227464885,-1257.17,0.00020273,4]
[330283968,1719227464895,-1328.66,0.00020273,4]
[330283969,1719227464904,-982.24809777,0.00020273,4]
[330283970,1719227465175,-612.8232,0.00018978,2]
[330283971,1719227465188,-1012.55724674,0.00018978,2]
[330283985,1719228039302,-603.54,0.00016778,2]
[330283987,1719228127432,1063.46,0.00016778,2]
[330284020,1719228635447,-280.56667432,0.00015947,2]
[330284031,1719228636428,-292.79332568,0.00015947,2]
[330284033,1719228636438,-74.16713032,0.00016777,2]
[330284035,1719228636451,-75.83286968,0.00016777,2]
[330284036,1719228636461,-386.69929364,0.00016778,2]
[330284053,1719228639868,-330.11440043,0.00016778,2]
[330284055,1719228639880,-1221.54032,0.00016778,2]
[330284058,1719228639893,-2348.40046312,0.00016778,2]
[330284062,1719228639928,-147.90945754,0.00016778,2]
[330284064,1719228639941,-6101.53699348,0.00016778,2]
[330284066,1719228639954,-8686.63542914,0.00016778,2]
[330284068,1719228639964,-189.80382855,0.00016778,2]
[330284070,1719228639975,-1340.26171979,0.00017045,2]
[330284072,1719228639985,-313.65,0.000175,2]
[330284074,1719228639999,-331.16,0.00017553,2]
[330284076,1719228640008,-234.96,0.00017599,2]
[330284078,1719228640019,-150.0,0.00017617,2]
[330284080,1719228640029,-2954.09,0.00017701,2]
[330284082,1719228640040,-150.94,0.00017728,2]
[330284084,1719228640050,-250.0,0.00017748,2]
[330284086,1719228640060,-150.94,0.00017804,2]
[330284088,1719228640070,-1000.0,0.00017865,2]
[330284090,1719228640081,-19800.94,0.00017865,2]
[330284092,1719228640092,-159.82,0.00017865,2]
[330284094,1719228640102,-250.0,0.00017865,2]
[330284096,1719228640112,-150.94,0.00017881,2]
[330284098,1719228640123,-162.47,0.00017917,2]
[330284100,1719228640133,-150.94,0.00017958,2]
[330284102,1719228640143,-150.94,0.00018035,2]
[330284104,1719228640154,-439.61,0.0001805,2]
[330284106,1719228640164,-150.94,0.00018112,2]
[330284108,1719228640174,-150.94,0.00018189,2]
[330284110,1719228640184,-573.36,0.00018211,2]
[330284112,1719228640195,-1719.371942,0.0001826,2]
[330284114,1719228640205,-167.111417,0.0001826,2]
[330284116,1719228640215,-468.600637,0.0001826,2]
[330284118,1719228640227,-348.527814,0.0001826,2]
[330284120,1719228640237,-150.94,0.00018266,2]
[330284122,1719228640252,-150.94,0.00018343,2]
[330284124,1719228640263,-313.65,0.00018375,2]
[330284125,1719228640273,-150.94,0.0001842,2]
[330284126,1719228640283,-1719.371942,0.00018488,2]
[330284127,1719228640293,-167.111417,0.00018488,2]
[330284128,1719228640303,-468.600637,0.00018488,2]
[330284129,1719228640313,-348.527814,0.00018488,2]
[330284130,1719228640324,-150.94,0.00018497,2]
[330284131,1719228640334,-700.0,0.000185,2]
[330284132,1719228640346,-665.0,0.000185,3]
[330284133,1719228640356,-150.94,0.00018574,2]
[330284134,1719228640367,-167.84,0.00018596,2]
[330284135,1719228640377,-166.53,0.00018627,2]
[330284136,1719228640387,-150.94,0.00018651,2]
[330284137,1719228640397,-1719.371942,0.00018717,2]
[330284138,1719228640408,-167.111417,0.00018717,2]
[330284139,1719228640418,-468.600637,0.00018717,2]
[330284140,1719228640427,-348.527814,0.00018717,2]
[330284141,1719228640437,-258.4664,0.00018878,2]
[330284142,1719228640448,-25297.22302113,0.000189,7]
[330284143,1719228640458,-1719.371942,0.00018945,2]
[330284144,1719228640469,-167.111417,0.00018945,2]
[330284145,1719228640479,-468.600637,0.00018945,2]
[330284146,1719228640490,-348.527814,0.00018945,2]
[330284147,1719228640506,-1000.0,0.00018978,2]
[330284148,1719228640517,-1455.217,0.00018978,2]
[330284149,1719228640529,-781.2969,0.00018978,2]
[330284150,1719228640540,-3473.3896,0.00018978,2]
[330284151,1719228640551,-519.86065789,0.00018999,2]
[330284152,1719228640561,-6344.51762135,0.00019078,2]
[330284153,1719228640572,-2138.34267619,0.00019078,2]
[330284154,1719228640583,-352.6212,0.00019078,2]
[330284155,1719228640594,-2883.6533784,0.00019099,2]
[330284156,1719228640606,-199.68638685,0.00019138,2]
[330284157,1719228640617,-543.96475932,0.00019172,2]
[330284158,1719228640627,-1719.371942,0.00019173,2]
[330284159,1719228640638,-167.111417,0.00019173,2]
[330284160,1719228640649,-468.600637,0.00019173,2]
[330284161,1719228640659,-348.527814,0.00019173,2]
[330284162,1719228640670,-639.54017673,0.00019178,2]
[330284163,1719228640680,-500.0,0.00019178,2]
[330284164,1719228640690,-250.0,0.00019178,2]
[330284165,1719228640701,-500.0,0.00019178,2]
[330284166,1719228640711,-500.0,0.00019178,2]
[330284167,1719228640722,-500.0,0.00019178,2]
[330284168,1719228640732,-500.0,0.00019178,2]
[330284169,1719228640748,-500.0,0.00019178,2]
[330284170,1719228640758,-431.90858343,0.00019178,2]
[330284171,1719228640769,-500.0,0.00019178,2]
[330284172,1719228640779,-500.0,0.00019178,2]
[330284173,1719228640790,-500.0,0.00019178,2]
[330284174,1719228640800,-500.0,0.00019178,2]
[330284175,1719228640811,-500.0,0.00019178,2]
[330284176,1719228640822,-500.0,0.00019178,2]
[330284177,1719228640833,-500.0,0.00019178,2]
[330284178,1719228640843,-500.0,0.00019178,2]
[330284179,1719228640854,-500.0,0.00019178,2]
[330284180,1719228640864,-500.0,0.00019178,2]
[330284181,1719228640874,-500.0,0.00019178,2]
[330284182,1719228640885,-500.0,0.00019178,2]
[330284183,1719228640896,-500.0,0.00019178,2]
[330284184,1719228640907,-500.0,0.00019178,2]
[330284185,1719228640918,-500.0,0.00019178,2]
[330284186,1719228640928,-500.0,0.00019178,2]
[330284187,1719228640938,-500.0,0.00019178,2]
[330284188,1719228640948,-500.0,0.00019178,2]
[330284189,1719228640959,-684.78,0.00019178,2]
[330284190,1719228640969,-539.78,0.00019178,2]
[330284191,1719228640979,-1312.6,0.00019178,2]
[330284192,1719228640990,-304.72,0.00019178,2]
[330284193,1719228641005,-500.0,0.00019178,2]
[330284194,1719228641015,-568.38,0.00019178,2]
[330284195,1719228641025,-500.0,0.00019178,2]
[330284196,1719228641035,-1814.98,0.00019178,2]
[330284197,1719228641048,-650.21,0.00019178,2]
[330284198,1719228641058,-500.0,0.00019178,2]
[330284199,1719228641068,-500.0,0.00019178,2]
[330284200,1719228641078,-584.04,0.00019178,2]
[330284201,1719228641093,-500.0,0.00019178,2]
[330284202,1719228641103,-594.87,0.00019178,2]
[330284203,1719228641113,-500.0,0.00019178,2]
[330284204,1719228641123,-500.0,0.00019178,2]
[330284205,1719228641133,-500.0,0.00019178,2]
[330284206,1719228641144,-500.0,0.00019178,2]
[330284207,1719228641154,-505.95,0.00019178,2]
[330284208,1719228641164,-500.0,0.00019178,2]
[330284209,1719228641175,-1930.57,0.00019178,2]
[330284210,1719228641186,-1930.57,0.00019178,2]
[330284211,1719228641196,-1930.57,0.00019178,2]
[330284212,1719228641206,-500.0,0.00019178,2]
[330284213,1719228641216,-500.0,0.00019178,2]
[330284214,1719228641226,-500.0,0.00019178,2]
[330284215,1719228641236,-571.11,0.00019178,2]
[330284216,1719228641250,-500.0,0.00019178,2]
[330284217,1719228641260,-500.0,0.00019178,2]
[330284218,1719228641271,-500.0,0.00019178,2]
[330284219,1719228641281,-634.59,0.00019178,2]
[330284220,1719228641291,-500.0,0.00019178,2]
[330284221,1719228641302,-500.0,0.00019178,2]
[330284222,1719228641312,-622.33,0.00019178,2]
[330284223,1719228641321,-559.11,0.00019178,2]
[330284224,1719228641520,-538.52,0.00019178,2]
[330284225,1719228641544,-589.73,0.00019178,2]
[330284226,1719228641555,-576.38,0.00019178,2]
[330284227,1719228641565,-543.99,0.00019178,2]
[330284228,1719228641575,-500.0,0.00019178,2]
[330284229,1719228641585,-425.44,0.00019178,2]
[330284230,1719228641598,-500.0,0.00019178,2]
[330284231,1719228641608,-500.0,0.00019178,2]
[330284232,1719228641619,-500.0,0.00019178,2]
[330284233,1719228641629,-500.0,0.00019178,2]
[330284234,1719228641640,-732.59,0.00019178,2]
[330284235,1719228641650,-500.0,0.00019178,2]
[330284236,1719228641660,-500.0,0.00019178,2]
[330284237,1719228641671,-500.0,0.00019178,2]
[330284238,1719228641681,-528.59,0.00019178,2]
[330284239,1719228641692,-500.0,0.00019178,2]
[330284240,1719228641702,-500.0,0.00019178,2]
[330284241,1719228641712,-500.0,0.00019178,2]
[330284242,1719228641722,-596.48,0.00019178,2]
[330284243,1719228641732,-500.0,0.00019178,2]
[330284244,1719228641745,-500.0,0.00019178,2]
[330284245,1719228641756,-500.0,0.00019178,2]
[330284246,1719228641766,-500.0,0.00019178,2]
[330284247,1719228641776,-500.0,0.00019178,2]
[330284248,1719228641786,-500.0,0.00019178,2]
[330284249,1719228641796,-1905.94,0.00019178,2]
[330284250,1719228641806,-500.0,0.00019178,2]
[330284251,1719228641817,-500.0,0.00019178,2]
[330284252,1719228641827,-500.0,0.00019178,2]
[330284253,1719228641837,-500.0,0.00019178,2]
[330284254,1719228641848,-500.0,0.00019178,2]
[330284255,1719228641858,-756.9,0.00019178,2]
[330284258,1719228641868,-500.0,0.00019178,2]
[330284260,1719228641879,-500.0,0.00019178,2]
[330284262,1719228641889,-500.0,0.00019178,2]
[330284264,1719228641900,-500.0,0.00019178,2]
[330284266,1719228641910,-1520.27,0.00019178,2]
[330284268,1719228641920,-500.0,0.00019178,2]
[330284270,1719228641931,-1408.66,0.00019178,2]
[330284272,1719228641941,-500.0,0.00019178,2]
[330284274,1719228641952,-1226.65,0.00019178,2]
[330284276,1719228641963,-500.0,0.00019178,2]
[330284278,1719228641973,-635.3,0.00019178,2]
[330284280,1719228641984,-500.0,0.00019178,2]
[330284281,1719228641997,-590.1,0.00019178,2]
[330284282,1719228642007,-839.29,0.00019178,2]
[330284283,1719228642017,-750.45,0.00019178,2]
[330284284,1719228642028,-2666.73,0.00019178,2]
[330284285,1719228642038,-1496.65,0.00019178,2]
[330284286,1719228642048,-1197.05,0.00019178,2]
[330284287,1719228642058,-698.63,0.00019178,2]
[330284288,1719228642068,-548.19,0.00019178,2]
[330284289,1719228642078,-500.0,0.00019178,2]
[330284290,1719228642088,-500.0,0.00019178,2]
[330284291,1719228642098,-500.0,0.00019178,2]
[330284292,1719228642109,-500.0,0.00019178,2]
[330284293,1719228642119,-902.55,0.00019178,2]
[330284294,1719228642130,-500.0,0.00019178,2]
[330284295,1719228642140,-500.0,0.00019178,2]
[330284296,1719228642151,-691.53,0.00019178,2]
[330284297,1719228642161,-500.0,0.00019178,2]
[330284298,1719228642172,-500.0,0.00019178,2]
[330284299,1719228642182,-2302.38,0.00019178,2]
[330284300,1719228642192,-7119.05,0.00019178,2]
[330284301,1719228642203,-1278.87,0.00019178,2]
[330284302,1719228642213,-4906.1,0.00019178,2]
[330284303,1719228642223,-500.0,0.00019178,2]
[330284304,1719228642234,-500.0,0.00019178,2]
[330284305,1719228642246,-500.0,0.00019178,2]
[330284306,1719228642256,-779.48,0.00019178,2]
[330284307,1719228642266,-500.0,0.00019178,2]
[330284308,1719228642277,-572.6,0.00019178,2]
[330284309,1719228642288,-1190.12,0.00019178,2]
[330284310,1719228642298,-730.36,0.00019178,2]
[330284311,1719228642308,-1280.54,0.00019178,2]
[330284312,1719228642319,-959.76,0.00019178,2]
[330284313,1719228642329,-500.0,0.00019178,2]
[330284314,1719228642339,-584.03,0.00019178,2]
[330284315,1719228642349,-500.0,0.00019178,2]
[330284316,1719228642360,-501.09,0.00019178,2]
[330284317,1719228642371,-500.0,0.00019178,2]
[330284318,1719228642381,-1042.65,0.00019178,2]
[330284319,1719228642392,-594.39,0.00019178,2]
[330284320,1719228642402,-500.0,0.00019178,2]
[330284321,1719228642413,-703.97,0.00019178,2]
[330284322,1719228642424,-1166.72,0.00019178,2]
[330284323,1719228642443,-316.86997668,0.00019178,2]
[330284324,1719228642454,-1043.7,0.00019178,2]
[330284325,1719228642464,-1006.71,0.00019178,2]
[330284326,1719228642475,-515.65,0.00019178,2]
[330284327,1719228642491,-500.0,0.00019178,2]
[330284328,1719228642508,-552.49,0.00019178,2]
[330284329,1719228642518,-500.0,0.00019178,2]
[330284330,1719228642528,-500.0,0.00019178,2]
[330284331,1719228642539,-500.0,0.00019178,2]
[330284332,1719228642551,-614.04,0.00019178,2]
[330284333,1719228642562,-1382.46,0.00019178,2]
[330284334,1719228642572,-597.41,0.00019178,2]
[330284335,1719228642585,-500.0,0.00019178,2]
[330284336,1719228642596,-514.22,0.00019178,2]
[330284337,1719228642607,-1812.34,0.00019178,2]
[330284338,1719228642617,-500.0,0.00019178,2]
[330284339,1719228642627,-500.0,0.00019178,2]
[330284340,1719228642637,-1289.31,0.00019178,2]
[330284341,1719228642648,-500.0,0.00019178,2]
[330284342,1719228642659,-500.0,0.00019178,2]
[330284343,1719228642669,-577.35,0.00019178,2]
[330284344,1719228642681,-500.0,0.00019178,2]
[330284345,1719228642691,-500.0,0.00019178,2]
[330284346,1719228642702,-500.0,0.00019178,2]
[330284347,1719228642712,-570.02,0.00019178,2]
[330284348,1719228642722,-579.12,0.00019178,2]
[330284349,1719228642732,-604.38,0.00019178,2]
[330284352,1719228642747,-2122.73,0.00019178,2]
[330284354,1719228642758,-500.0,0.00019178,2]
[330284356,1719228642769,-1357.34,0.00019178,2]
[330284358,1719228642779,-500.0,0.00019178,2]
[330284360,1719228642790,-500.0,0.00019178,2]
[330284362,1719228642799,-735.26,0.00019178,2]
[330284364,1719228642809,-500.0,0.00019178,2]
[330284366,1719228642822,-500.0,0.00019178,2]
[330284368,1719228642832,-571.42607805,0.00019178,2]
[330284370,1719228642842,-500.0,0.00019178,2]
[330284372,1719228642852,-500.0,0.00019178,2]
[330284374,1719228642862,-845.69,0.00019178,2]
[330284376,1719228642872,-989.22,0.00019178,2]
[330284378,1719228642883,-500.0,0.00019178,2]
[330284380,1719228642893,-500.0,0.00019178,2]
[330284382,1719228642904,-500.0,0.00019178,2]
[330284384,1719228642914,-500.0,0.00019178,2]
[330284386,1719228642924,-750.48,0.00019178,2]
[330284388,1719228642934,-500.0,0.00019178,2]
[330284390,1719228642944,-1051.85,0.00019178,2]
[330284392,1719228642954,-632.04,0.00019178,2]
[330284394,1719228642963,-500.0,0.00019178,2]
[330284396,1719228642974,-500.0,0.00019178,2]
[330284398,1719228642983,-500.0,0.00019178,2]
[330284400,1719228642997,-1102.27,0.00019178,2]
[330284402,1719228643007,-500.0,0.00019178,2]
[330284404,1719228643017,-500.0,0.00019178,2]
[330284406,1719228643027,-500.0,0.00019178,2]
[330284408,1719228643038,-500.0,0.00019178,2]
[330284410,1719228643048,-500.0,0.00019178,2]
[330284412,1719228643060,-541.98,0.00019178,2]
[330284414,1719228643071,-916.62,0.00019178,2]
[330284416,1719228643082,-500.0,0.00019178,2]
[330284418,1719228643093,-500.0,0.00019178,2]
[330284420,1719228643103,-500.0,0.00019178,2]
[330284422,1719228643113,-500.0,0.00019178,2]
[330284424,1719228643124,-500.0,0.00019178,2]
[330284426,1719228643134,-500.0,0.00019178,2]
[330284428,1719228643148,-1669.33,0.00019178,2]
[330284430,1719228643158,-500.0,0.00019178,2]
[330284432,1719228643168,-684.06,0.00019178,2]
[330284434,1719228643178,-764.41,0.00019178,2]
[330284436,1719228643188,-500.0,0.00019178,2]
[330284438,1719228643199,-524.45378179,0.00019178,2]
[330284440,1719228643209,-903.79,0.00019178,2]
[330284442,1719228643219,-500.0,0.00019178,2]
[330284444,1719228643229,-500.0,0.00019178,2]
[330284446,1719228643240,-551.46,0.00019178,2]
[330284448,1719228643254,-4102.12,0.00019178,2]
[330284450,1719228643264,-500.0,0.00019178,2]
[330284452,1719228643274,-593.84,0.00019178,2]
[330284454,1719228643284,-2650.6,0.00019178,2]
[330284456,1719228643294,-893.16,0.00019178,2]
[330284458,1719228643306,-1935.58,0.00019178,2]
[330284460,1719228643316,-500.0,0.00019178,2]
[330284462,1719228643327,-500.0,0.00019178,2]
[330284465,1719228643338,-1042.59,0.00019178,2]
[330284467,1719228643348,-1423.19,0.00019178,2]
[330284469,1719228643359,-500.0,0.00019178,2]
[330284471,1719228643369,-1203.55,0.00019178,2]
[330284473,1719228643380,-500.0,0.00019178,2]
[330284475,1719228643390,-500.0,0.00019178,2]
[330284477,1719228643400,-874.03,0.00019178,2]
[330284479,1719228643411,-500.0,0.00019178,2]
[330284481,1719228643421,-500.0,0.00019178,2]
[330284483,1719228643432,-500.0,0.00019178,2]
[330284485,1719228643442,-1054.18,0.00019178,2]
[330284487,1719228643452,-500.0,0.00019178,2]
[330284489,1719228643463,-2486.15,0.00019178,2]
[330284491,1719228643473,-1046.98,0.00019178,2]
[330284493,1719228643483,-863.76,0.00019178,2]
[330284495,1719228643496,-609.8,0.00019178,2]
[330284497,1719228643507,-934.32,0.00019178,2]
[330284499,1719228643519,-500.0,0.00019178,2]
[330284501,1719228643529,-1127.73,0.00019178,2]
[330284503,1719228643539,-1399.16,0.00019178,2]
[330284505,1719228643549,-500.0,0.00019178,2]
[330284507,1719228643559,-1287.81,0.00019178,2]
[330284509,1719228643568,-500.0,0.00019178,2]
[330284511,1719228643578,-500.0,0.00019178,2]
[330284513,1719228643589,-966.35,0.00019178,2]
[330284514,1719228643600,-500.0,0.00019178,2]
[330284515,1719228643611,-777.6,0.00019178,2]
[330284516,1719228643621,-500.0,0.00019178,2]
[330284517,1719228643632,-2364.91,0.00019178,2]
[330284518,1719228643643,-500.0,0.00019178,2]
[330284519,1719228643653,-935.68,0.00019178,2]
[330284520,1719228643664,-500.0,0.00019178,2]
[330284521,1719228643674,-1544.65,0.00019178,2]
[330284522,1719228643684,-500.0,0.00019178,2]
[330284523,1719228643694,-603.51,0.00019178,2]
[330284524,1719228643704,-715.93,0.00019178,2]
[330284525,1719228643714,-502.18917419,0.00019178,2]
[330284526,1719228643723,-1573.61,0.00019178,2]